Cogmind - Beta 16.1 @@@ ROGUE MODE // 2026.02.15 @ 00:09:24 Player: Zish Result: Destroyed by AT-RAN(R) with Subdweller Laser Performance ------------- Evolutions (0) 0 Regions Visited (2) 400 Robots Destroyed (16) 80 Value Destroyed (396) 396 Prototype IDs (3) 60 Alien Tech Used (0) 0 Bonus (-266) -266 TOTAL SCORE: 670 Bonus ------- Friendly Fire -266 Cogmind --------- Core Integrity 0/250 Matter 292/300 Energy 196/250 System Corruption 0% Temperature Cool (6) Movement Hovering (176) Ox2 Location -10/Subcaves Parts ------- > --- POWER (1) -------- Ion Engine > --- PROPULSION (2) --- Improved Hover Unit Improved Hover Unit > --- UTILITY (2) ------ Large Storage Unit > --- WEAPON (2) ------- EMP Blaster Mining Claw > --- INVENTORY (15) --- Light Ion Engine Light Ion Engine Light Ion Engine Signal Interpreter Seismic Detector Targeting Computer Light Armor Plating Small Laser Small Laser Assault Rifle Heavy Battle Rifle EMP Blaster Grenade Launcher Makeshift Hammer Peak State ------------ > --- POWER ------------ Ion Engine > --- PROPULSION ------- Improved Hover Unit Improved Hover Unit > --- UTILITY ---------- Large Storage Unit Targeting Computer > --- WEAPON ----------- EMP Blaster EMP Blaster > --- INVENTORY -------- Small Storage Unit Signal Interpreter Seismic Detector Targeting Computer Targeting Computer EM Pulse Gun Medium Laser Small Laser Small Laser EMP Blaster EMP Blaster [Rating: 12] Favorites ----------- Power Ion Engine Engine Ion Engine Propulsion Improved Hover Unit Treads Light Treads Hover Unit Improved Hover Unit Utility Large Storage Unit Storage Large Storage Unit Processor Targeting Computer Weapon Medium Laser Energy Gun Medium Laser Ballistic Gun Light Assault Rifle Launcher EMP Blaster Slashing Weapon Mining Claw Build | -11 -10 -10 ------- Run | Yrd Mat Sub Slots Evolved . | . . . Power . | . . . Propulsion . | . . . Utility . | . . . Weapon . | . . . Parts Attached 21 | 7 11 3 Power 2 | 1 1 . Engine 2 | 1 1 . Core . | . . . Reactor . | . . . Propulsion 6 | 2 3 1 Treads 2 | 2 . . Leg . | . . . Wheel . | . . . Hover 4 | . 3 1 Flight . | . . . Utility 3 | 1 2 . Device . | . . . Storage 2 | 1 1 . Processor 1 | . 1 . Hackware . | . . . Protection . | . . . Artifact . | . . . Weapon 10 | 3 5 2 Energy Gun 3 | 1 2 . Energy Cannon . | . . . Ballistic Gun 3 | 2 1 . Ballistic Cannon . | . . . Launcher 3 | . 2 1 Special Weapon . | . . . Impact Weapon . | . . . Slashing Weapon 1 | . . 1 Piercing Weapon . | . . . Special Melee Weapon . | . . . Unidentified Prototypes . | . . . Parts Lost 7 | . 6 1 Power 1 | . 1 . Propulsion 4 | . 3 1 Utility . | . . . Weapon 2 | . 2 . Highest Loss Streak 4 | . 4 1 To Critical Strikes . | . . . Average Backups 9 | . 9 13 Power 1 | . . 3 Propulsion . | . . . Utility 3 | . 3 4 Weapon 4 | . 4 6 Tool/Special . | . . . Unused Backups 13 | . 2 11 Power 3 | . . 3 Propulsion . | . . . Utility 5 | . 1 4 Weapon 5 | . 1 4 Tool/Special . | . . . Average Slot Usage (%) 85 | . 83 94 Engine 13 | . 13 14 Treads 1 | . 2 . Hover 15 | . 12 28 Storage 13 | . 13 14 Processor 11 | . 11 9 Energy Gun 16 | . 19 . Ballistic Gun 4 | . 4 1 Launcher 4 | . 2 12 Slashing Weapon 2 | . . 13 Peak Build Rating 12 | 6 12 12 Average Rating 8 | 4 7 11 On Entrance 5 | . 6 10 Avg Prop Armor Cover (%) . | . . . Naked Turns . | . . . Heaviest Build 33 | 11 33 31 Greatest Support 40 | 40 40 14 Greatest Overweight (x) 10 | . 10 2 Average Overweight (x) 2 | . 2 1 Largest Inventory Capacity 15 | 8 15 15 Average Capacity 13 | 6 13 15 Most Carried 15 | 3 15 14 Average Carried 9 | . 9 13 Final Capacity 15 | 8 15 15 Final Carried 14 | 2 13 14 Class Distribution -------------------- 100% | Mutant Dominant Class ---------------- Mutant | -10/Materials Mutant | -10/Subcaves Resources | -11 -10 -10 ----------- Run | Yrd Mat Sub Matter Collected 522 | 258 217 47 Remotely . | . . . Salvage Created 666 | . 558 108 Parts 34 | . 22 12 Haulers Intercepted . | . . . Recyclers Shooed . | . . . Parts Field Recycled . | . . . Retrieved Matter . | . . . Parts Self-Destructed . | . . . Prevented . | . . . Parts Restored . | . . . Kills | -11 -10 -10 ------- Run | Yrd Mat Sub Combat Hostiles Destroyed 9 | . 7 2 Guns 6 | . 6 . AOE 3 | . 1 2 Classes Destroyed 6 | . 4 2 Worker 4 | . 4 . Recycler 2 | . 2 . Watcher 1 | . 1 . Grunt 7 | . 7 . Cobbler 1 | . . 1 Subdweller 2 | . . 2 Best Kill Streak 5 | . 5 2 Combat Bots Only 2 | . 2 2 Max Kills in Single Turn 3 | . 1 3 Gunslinging . | . . . Exploded 2 | . 1 2 Melee . | . . . Uniques/NPCs Destroyed . | . . . Combat | -11 -10 -10 -------- Run | Yrd Mat Sub Hostile Shots Fired 83 | . 72 11 Missed 18 | . 16 2 Hits 65 | . 56 9 Projectile 65 | . 56 9 AOE 4 | . . 4 Critical Strikes 1 | . . 1 Damage Taken 1073 | . 754 319 Core 251 | . 128 123 Absorbed by Shields . | . . . Core Remaining (%) 100 | 100 . . Volleys Fired 74 | . 68 6 Largest 2 | . 2 2 Hottest 90 | . 90 60 Shots Fired 143 | . 136 7 Gun 137 | . 132 5 Cannon . | . . . Launcher 6 | . 4 2 Special . | . . . Kinetic 82 | . 78 4 Thermal 51 | . 50 1 Explosive . | . . . Electromagnetic 10 | . 8 2 Robot Hit Streak 11 | . 11 4 Robot Miss Streak 2 | . 2 1 Penetration Max . | . . . Secondary Targets . | . . . Shots Hit Robots 111 | . 99 12 Core Hits 40 | . 32 8 Critical Kills . | . . . Critical Parts Destroyed . | . . . Critical Strikes 3 | . 3 . Burn 3 | . 3 . Melee Attacks 20 | . . 20 Impact . | . . . Slashing 20 | . . 20 Piercing . | . . . Sneak Attacks 5 | . . 5 Combat Hostiles . | . . . Follow-up Attacks . | . . . Damage Inflicted 1526 | . 1082 444 Guns 940 | . 928 12 Cannons . | . . . Explosions 296 | . 152 144 Melee 288 | . . 288 Ramming 2 | . 2 . Kinetic 513 | . 501 12 Thermal 416 | . 385 31 Explosive . | . . . Electromagnetic 307 | . 194 113 Impact . | . . . Slashing 288 | . . 288 Piercing . | . . . Highest Corruption . | . . . Average Corruption . | . . . Corruption Purged . | . . . Corruption Blocked . | . . . Overload Shots . | . . . Overflow Damage 14 | . . 14 Projectiles . | . . . Explosions . | . . . Melee 14 | . . 14 Knockbacks . | . . . Impact . | . . . Kinetic . | . . . Secondary . | . . . Self-Inflicted Damage 1 | . 1 . Shots . | . . . Rammed 1 | . 1 . Targets Rammed 1 | . 1 . Kicked . | . . . Crushed . | . . . Highest Temperature 167 | . 167 . Average Temperature 45 | . 45 . Received Heat Transfer 447 | . 417 30 Siege Activations . | . . . Martial Activations . | . . . Shielding Activations . | . . . Robots Disrupted . | . . . Combat Hostiles . | . . . Robots Corrupted . | . . . Combat Hostiles . | . . . Parts Fried . | . . . Impact Corruptions . | . . . Robots Melted . | . . . Combat Hostiles . | . . . Parts Melted 3 | . 3 . Heat Transferred 1359 | . 1309 50 Parts Sabotaged . | . . . Parts Stolen . | . . . Parts Stripped . | . . . Power Chain Reactions 2 | . . 2 Alert | -11 -10 -10 ------- Run | Yrd Mat Sub Maximum Alert Level . | . . . Low Security (%) 100 | 100 100 . Level 1 . | . . . Level 2 . | . . . Level 3 . | . . . Level 4 . | . . . Level 5 . | . . . High Security . | . . . Max Security . | . . . Peak Influence 73 | . 73 . Initial . | . . . Average 10 | . 11 . Influence Increases 272 | . 272 . Destroy 0b10 Robot/C 140 | . 140 . Destroy 0b10 Robot/NC 35 | . 35 . Destroy Leader 42 | . 42 . Successful Hack 10 | . 10 . Disable Machine 30 | . 30 . Lose Combat Pursuer 15 | . 15 . Influence Decreases 272 | . 272 . Time Decay 227 | . 227 . Lost Part 45 | . 45 . Squads Dispatched 2 | . 2 . Investigation 2 | . 2 . Extermination . | . . . Reinforcement . | . . . Assault . | . . . Garrison . | . . . Intercept . | . . . Searches Triggered . | . . . Construction Impeded . | . . . Haulers Reinforced . | . . . Active Scanning Responses . | . . . Cargo Convoy Interrupts . | . . . Stealth | -11 -10 -10 --------- Run | Yrd Mat Sub Distress Signals 2 | . 2 . Communications Jammed . | . . . Distress Signals . | . . . Times Spotted 24 | . 18 6 Peak Tracking Total 5 | . 5 2 Tactical Retreats 1 | . 1 . Traps | -11 -10 -10 ------- Run | Yrd Mat Sub Traps Triggered 2 | . 2 . Indirectly . | . . . Trap Hack Attempts . | . . . Triggered . | . . . Disarmed . | . . . Reprogrammed . | . . . Reused . | . . . Traps Extracted . | . . . Installed . | . . . Triggered . | . . . Machines | -11 -10 -10 ---------- Run | Yrd Mat Sub Machines Disabled 2 | . 2 . Max in Single Turn 2 | . 2 . Machines Repaired . | . . . Machines Dismantled . | . . . Machines Sabotaged . | . . . Overloaded Fab Kills . | . . . Hacking | -11 -10 -10 --------- Run | Yrd Mat Sub Machines Accessed 8 | . 8 . Terminals 6 | . 6 . Fabricators . | . . . Repair Stations . | . . . Recycling Units 2 | . 2 . Scanalyzers . | . . . Garrison Access . | . . . Total Hacks 11 | . 11 . Successful 8 | . 8 . Failed 3 | . 3 . Catastrophic . | . . . Database Lockouts . | . . . Manual . | . . . Terminals 9 | . 9 . Fabricators . | . . . Repair Stations . | . . . Recycling Units 2 | . 2 . Scanalyzers . | . . . Garrison Access . | . . . Terminal Hacks 6 | . 6 . Prototype ID Bank 2 | . 2 . Alert Level 1 | . 1 . Assault Status 1 | . 1 . Hauler Manifests 1 | . 1 . Zone Layout 1 | . 1 . Fabricator Hacks . | . . . Repair Station Hacks . | . . . Recycling Unit Hacks 2 | . 2 . Report Inventory 2 | . 2 . Scanalyzer . | . . . Garrison Access Hacks . | . . . Unauthorized Hacks . | . . . Terminals . | . . . Fabricators . | . . . Repair Stations . | . . . Recycling Units . | . . . Scanalyzers . | . . . Garrison Access . | . . . Data Cores Recovered . | . . . Used . | . . . Hacking Detections 1 | . 1 . Full Trace Events . | . . . Feedback Events . | . . . Feedback Blocked . | . . . Robot Schematics Acquired . | . . . Robots Built . | . . . Authchips . | . . . Time . | . . . Total Robot Build Rating . | . . . Part Schematics Acquired . | . . . Parts Built . | . . . Authchips . | . . . Time . | . . . Total Part Build Rating . | . . . Part Studies Acquired . | . . . Parts Repaired . | . . . Time . | . . . Parts Recycled . | . . . Recycled Matter . | . . . Retrieved Matter . | . . . Retrieved Components . | . . . Parts Scanalyzed . | . . . Part Schematics Acquired . | . . . Parts Damaged . | . . . Bothacking | -11 -10 -10 ------------ Run | Yrd Mat Sub Used RIF Installer . | . . . Robots Hacked . | . . . Non-combat . | . . . Combat . | . . . Robot Hacks Applied . | . . . Relay Couplers Released . | . . . Fabnet Peak Effective % . | . . . Robots Rewired . | . . . Allies Hacked . | . . . Hacks Repelled . | . . . Allies | -11 -10 -10 -------- Run | Yrd Mat Sub Total Allies . | . . . Largest Group . | . . . Highest-Rated Group . | . . . Highest-Rated Ally . | . . . Total Orders . | . . . Ally Attacks . | . . . Total Damage . | . . . Kills . | . . . Allies Corrupted . | . . . Allies Melted . | . . . Intel | -11 -10 -10 ------- Run | Yrd Mat Sub Active Infowar (turns) . | . . . Robot Analysis Total . | . . . Derelict Logs Recovered . | . . . Drone Launches . | . . . Drone Recoveries . | . . . Exploration | -11 -10 -10 ------------- Run | Yrd Mat Sub Turns Passed 2123 | 75 1650 398 Spaces Moved 973 | 43 747 183 Core 158 | 5 153 . Treads 76 | 38 38 . Legs . | . . . Wheels . | . . . Hover 739 | . 556 183 Flight . | . . . Fastest Speed 50 | 50 116 116 Average Speed 181 | 147 184 174 Slowest Speed 550 | 160 550 176 Overloaded Moves . | . . . Propulsion Burnouts . | . . . Robots Hopped . | . . . Potential Cave-ins . | . . . Cave-ins Triggered . | . . . Exploration Rate (%) 34 | 4 87 12 Regions Visited 2 Branch Regions 1 Pre-discovered Areas . | . . . Known Exits Taken . | . . . Unknown Exits Taken 2 | 1 1 . Scrap Searched . | . . . Spaces Dug . | . . . Terrain Destroyed 8 | . . 8 Melee . | . . . Projectile . | . . . AOE 8 | . . 8 Terrain Rammed . | . . . Walls Destroyed . | . . . Machines Disabled . | . . . Actions | -11 -10 -10 --------- Run | Yrd Mat Sub Total 1169 | 52 900 217 Wait 36 | . 36 . Move 971 | 42 746 183 Hop . | . . . Pick Up 28 | 2 24 2 Fast Attach 7 | 6 1 . Attach 16 | 1 12 3 Detach 7 | 1 3 3 Swap 1 | . 1 . Drop 8 | . 8 . Fire 74 | . 68 6 Melee 20 | . . 20 Ram 1 | . 1 . Kick . | . . . Crush . | . . . Escape Stasis . | . . . Rewire . | . . . Trap . | . . . Miscellaneous . | . . . Route ------- -11/Scrapyard -10/Materials (discovered 4 exits: [*Mat x3] / [*Sub]) -10/Subcaves History --------- Turn | Location | Event 5 | -11/Scrapyard | Discovered new exit (range 15) 76 | -11/Scrapyard | Entered Materials 175 | -10/Materials | Discovered new exit (range 8) 253 | -10/Materials | Lost 4 parts (1p2n1w) 301 | -10/Materials | Build established: Mutant 787 | -10/Materials | Discovered new exit (range 16) 1103 | -10/Materials | Core integrity fell below 50% 1254 | -10/Materials | Discovered new exit (range 7) 1516 | -10/Materials | Discovered new exit (range 12) 1726 | -10/Materials | Entered Subcaves 1727 | -10/Subcaves | Shifting Twisted Machinery released Hvy. Battle Rifle 1729 | -10/Subcaves | Shifting Twisted Machinery released Mak. Hammer 1947 | -10/Subcaves | Shifting Twisted Machinery released Mak. Light Armor Plating 2067 | -10/Subcaves | Core integrity fell below 20% 2124 | -10/Subcaves | Destroyed by AT-RAN(R) with Subdweller Laser Last Messages --------------- 02022_ Destroyed Neutrino Core. 02068_ HV Slug penetrates Twisted Machinery. 02068_ HV Slug penetrates Wall. 02071_ HV Slug penetrates Twisted Machinery. 02073_ TQ-9U4(R) destroyed. 02076_ Acquired 20 matter. 02083_ Sneak attack on EP-QKY(h). 02083_ Destroyed Phase Shifter. 02117_ 7J-NND(R) suffers critical hit (Destroy). 02120_ 7J-NND(R) destroyed. 02120_ 0O-UC4(R) destroyed. 02120_ Chain reaction triggered in Corrupted Sub. Power Source. 02120_ MI-13B(O) cries out in pain. 02120_ MI-13B(O) destroyed. 02121_ AT-RAN(R) angrily emerges from the Twisted Machinery. 02121_ AT-RAN(R): "SUBMAD!" 02122_ HV Slug penetrates Twisted Machinery. Map ----- +----------------------------------------------------+ | ???????????## ####??## #??# | | ???????????# #### #### | | ???????????## % ## # | | ????????????# # # # #### | | ????????????# ######## #??# | | ???????????## #??????#### ## #??? | | ???????????# #?????????##### #??? | | ???????????# #????????????# "? | | ???????????# #????###???? " | | ???????????## ##???# #??# % ## " | | ???????????# ##??? #??# ## ### " | | ???????????# #??? #??# #####?# "" | | ???????????# ##??# % #??# ?????#### | | ???????????## #### % #???# ????????## | | ???????????# ## #???? #?????????? ## | | ???????????## ## #????? ##?????????? ##? | | ????????????# #??????? ???????????? #?? | | ????????????# ##???????? ???????????? ??? | | ???????????## #######???????#???????????????? | | ???????????#" """ ## ##????? #???????????????? | | ???????????#" " """#???? #????????????????? | | ???????????#" " ##??? #????????????????? | | ???????????## ### ##"# ###!!=###??????????????? | | ???????????##""## #### # &&&!;;#??????????????? | | ???????????# ! ?###"### &%!% ##?????????????? | | ???????????# ???# @ =%! #?????????????? | | ???????????#" ##### h # #????????????? | | ???????????#" #&& ###??# #????????????? | | ???????????#" % %&! " ###?????? ##????????????? | | ???????????#"" %&""R ##?????????##?????????????? | | ???????????##"" ##"" "##?????????????????????????? | | ????????????#"""###"###??????????????????????????? | | ????????????#""##?###????????????????????????????? | | ????????????#""#?????????????????????????????????? | | ????????????#"""?????????????????????????????????? | | ????????????#""??????????????????????????????????? | | ?????????????? ??????????????????????????????????? | | ?????????????????????????????????????????????????? | | ?????????????????????????????????????????????????? | | ?????????????????????????????????????????????????? | | ?????????????????????????????????????????????????? | | ?????????????????????????????????????????????????? | | ?????????????????????????????????????????????????? | | ?????????????????????????????????????????????????? | | ?????????????????????????????????????????????????? | | ?????????????????????????????????????????????????? | | ?????????????????????????????????????????????????? | | ?????????????????????????????????????????????????? | | ?????????????????????????????????????????????????? | | ?????????????????????????????????????????????????? | +----------------------------------------------------+ Best States ------------- Heat Dissipation 25 Energy Generation 10 Energy Capacity 250 Matter Stores 300 Matter Capacity 300 Sight Range 16 Terrain Scan Density 10 Evasion (%) 40 Targeting Accuracy 5 Recoil Reduction 2 Item Schematics ----------------- None Robot Schematics ------------------ None Fabricated ------------ Nothing Repaired ---------- Nothing Studied --------- None Alien Tech Used ----------------- None Achievements -------------- None Challenges ------------ None Game ------ Seed NeutrinoAlphaScrapsphere Manual? 0 Play Time 00:13:35 Cumulative 22.1 hours Start 2026.02.14 @ 20:17:42 End 2026.02.15 @ 00:09:24 Sessions 2 Manual Loads 0 Difficulty Rogue Special Mode None Game No. 55 Rogue 55 Adventurer 0 Explorer 0 Win Type - Total 0 Types 0/0/0/0/0/0/0/0/0/0 Lore% 10 Gallery% 23 Achievement% 18 Wizard Run 0 Options --------- Layout 1 ASCII 0 Keyboard 1 Movement Vi Keybinds 0 Fullscreen 1 Font 24/Smallcaps Map View 50x35 Zoom Use 0% Tactical HUD 1 Map Filters NONE Filters NONE Steam 1 RUN: 663bc6ac-f4c6-4333-b595-4a130c3b52b4